Cogmind - Beta 14 @@@ ROGUE MODE // 2025.01.16 @ 01:22:01 Player: celerysam Result: Destroyed by H-61 Shepherd with Heavy Assault Cannon Performance ------------- Evolutions (2) 1000 Regions Visited (4) 800 Robots Destroyed (28) 140 Value Destroyed (913) 913 Prototype IDs (3) 60 Alien Tech Used (0) 0 Bonus (0) 0 TOTAL SCORE: 2913 Bonus ------- None Cogmind --------- Core Integrity 0/550 Matter 300/300 Energy 100/100 System Corruption 0% Temperature Cool (0) Movement Core (100) Ox1 Location -8/Materials Parts ------- > --- POWER (1) -------- (None) > --- PROPULSION (4) --- (None) > --- UTILITY (4) ------ Small Storage Unit > --- WEAPON (2) ------- (None) > --- INVENTORY (8) ---- Experimental Sensor Array Heavy EM Shotgun Autogun Minigun Mini Grenade Launcher Peak State ------------ > --- POWER ------------ Light Ion Engine > --- PROPULSION ------- Carbon-fiber Leg Compact Wheel Compact Wheel > --- UTILITY ---------- Small Storage Unit Compact Matter Pod Recoil Stabilizer Recalibrator > --- WEAPON ----------- Heavy EM Shotgun Enhanced Autogun > --- INVENTORY -------- Improved Treads Improved Treads Experimental Sensor Array Heavy EM Shotgun Autogun Light Cannon Flak Cannon Mini Grenade Launcher [Rating: 27] Favorites ----------- Power Light Ion Engine Engine Light Ion Engine Power Core Light Nuclear Core Propulsion Compact Wheel Treads Light Treads Leg Carbon-fiber Leg Wheel Compact Wheel Utility Small Storage Unit Device Recoil Stabilizer Storage Small Storage Unit Processor Targeting Computer Protection Medium Armor Plating Weapon Assault Rifle Energy Gun Spread Laser Ballistic Gun Assault Rifle Ballistic Cannon Light Cannon Build | -11 -10 -10 -9 -8 ------- Run | Yrd Mat Min Mat Mat Slots Evolved 4 | . . . 2 2 Power . | . . . . . Propulsion 2 | . . . 1 1 Utility 2 | . . . 1 1 Weapon . | . . . . . Parts Attached 46 | 6 1 3 18 18 Power 6 | 1 . . 3 2 Engine 3 | 1 . . 1 1 Core 3 | . . . 2 1 Reactor . | . . . . . Propulsion 16 | 2 . 2 7 5 Treads 4 | . . 2 . 2 Leg 1 | . . . . 1 Wheel 11 | 2 . . 7 2 Hover . | . . . . . Flight . | . . . . . Utility 10 | 1 1 . 4 4 Device 4 | . . . 2 2 Storage 4 | 1 1 . 1 1 Processor 1 | . . . . 1 Hackware . | . . . . . Protection 1 | . . . 1 . Artifact . | . . . . . Weapon 14 | 2 . 1 4 7 Energy Gun 3 | . . . 2 1 Energy Cannon . | . . . . . Ballistic Gun 8 | 2 . 1 1 4 Ballistic Cannon 3 | . . . 1 2 Launcher . | . . . . . Special Weapon . | . . . . . Impact Weapon . | . . . . . Slashing Weapon . | . . . . . Piercing Weapon . | . . . . . Special Melee Weapon . | . . . . . Unidentified Prototypes 2 | . . . . 2 Parts Lost 29 | . . 2 10 17 Power 4 | . . . 2 2 Propulsion 10 | . . 2 2 6 Utility 7 | . . . 3 4 Weapon 8 | . . . 3 5 Highest Loss Streak 12 | . . 2 6 12 To Critical Strikes . | . . . . . Average Slot Usage (%) 85 | . 98 99 84 72 Engine 6 | . 14 14 4 . Core 2 | . . . 5 1 Treads 2 | . . 4 3 1 Leg 1 | . . . . 6 Wheel 22 | . 28 23 24 18 Device 5 | . . . 4 12 Storage 18 | . 26 28 13 15 Protection 2 | . . . 5 . Energy Gun 4 | . . . 9 3 Ballistic Gun 15 | . 28 28 10 7 Ballistic Cannon 1 | . . . 2 3 Peak Build Rating 27 | 6 7 9 17 27 Average Rating 12 | 3 6 7 13 19 On Entrance 5 | . 6 7 9 5 Naked Turns . | . . . . . Heaviest Build 25 | 12 13 14 25 22 Greatest Support 48 | 26 26 40 48 46 Greatest Overweight (x) 4 | . . 4 1 1 Average Overweight (x) . | . . . . . Largest Inventory Capacity 8 | 8 8 8 8 8 Average Capacity 7 | 6 8 8 8 8 Most Carried 8 | 8 7 8 8 8 Average Carried 7 | 4 6 7 7 7 Final Capacity 8 | 8 8 8 8 8 Final Carried 7 | 6 7 7 6 5 Class Distribution -------------------- 100% | Mutant Dominant Class ---------------- Mutant | -10/Materials Mutant | -10/Mines Mutant | -9/Materials Mutant | -8/Materials Resources | -11 -10 -10 -9 -8 ----------- Run | Yrd Mat Min Mat Mat Matter Collected 1015 | 201 69 98 294 353 Remotely . | . . . . . Salvage Created 846 | . . 133 344 369 Parts 58 | . . 7 30 21 Haulers Intercepted . | . . . . . Recyclers Shooed . | . . . . . Parts Field Recycled . | . . . . . Retrieved Matter . | . . . . . Parts Self-Destructed . | . . . . . Prevented . | . . . . . Kills | -11 -10 -10 -9 -8 ------- Run | Yrd Mat Min Mat Mat Combat Hostiles Destroyed 23 | . . 3 13 7 Guns 19 | . . 3 11 5 Cannons 4 | . . . 2 2 Classes Destroyed 7 | . . 2 4 1 Builder 2 | . . . 1 1 Mechanic 1 | . . . 1 . Watcher 2 | . . . 1 1 Swarmer 6 | . . . 6 . Grunt 8 | . . 2 4 2 Sentry 6 | . . 1 3 2 Hunter 3 | . . . . 3 Best Kill Streak 7 | . . 2 7 3 Combat Bots Only 6 | . . 2 6 3 Max Kills in Single Turn 2 | . . 1 2 1 Gunslinging . | . . . . . Exploded . | . . . . . Melee . | . . . . . Uniques/NPCs Destroyed . | . . . . . Combat | -11 -10 -10 -9 -8 -------- Run | Yrd Mat Min Mat Mat Hostile Shots Fired 330 | . . 35 165 130 Missed 96 | . . 12 45 39 Damage Taken 3405 | . . 322 1328 1755 Core 967 | . . 80 327 560 Absorbed by Shields . | . . . . . Core Remaining (%) 62 | 100 . 68 18 . Volleys Fired 97 | . 3 10 45 39 Largest 2 | . 2 2 2 2 Hottest 100 | . 40 40 100 73 Shots Fired 177 | . 6 20 86 65 Gun 146 | . 6 20 72 48 Cannon 31 | . . . 14 17 Launcher . | . . . . . Special . | . . . . . Kinetic 130 | . 6 20 49 55 Thermal 37 | . . . 37 . Explosive . | . . . . . Electromagnetic 10 | . . . . 10 Robot Hit Streak 18 | . 3 6 18 13 Robot Miss Streak 15 | . 2 4 15 8 Penetration Max 1 | . . . . 1 Secondary Targets 3 | . . 1 2 . Max Gunslinging Chain 1 | . . 1 1 . Shots Hit Robots 123 | . 3 13 57 50 Core Hits 99 | . 1 6 55 37 Critical Kills . | . . . . . Critical Parts Destroyed 2 | . . . 1 1 Critical Strikes 2 | . . . 1 1 Destroy 2 | . . . 1 1 Melee Attacks . | . . . . . Impact . | . . . . . Slashing . | . . . . . Piercing . | . . . . . Sneak Attacks . | . . . . . Combat Hostiles . | . . . . . Follow-up Attacks . | . . . . . Damage Inflicted 2148 | . 41 195 843 1069 Guns 1612 | . 41 195 775 601 Cannons 301 | . . . 68 233 Explosions 233 | . . . . 233 Melee . | . . . . . Ramming 2 | . . . . 2 Kinetic 1243 | . 41 195 365 642 Thermal 711 | . . . 478 233 Explosive . | . . . . . Electromagnetic 192 | . . . . 192 Impact . | . . . . . Slashing . | . . . . . Piercing . | . . . . . Highest Corruption . | . . . . . Average Corruption . | . . . . . Corruption Purged . | . . . . . Corruption Blocked . | . . . . . Overload Shots . | . . . . . Overflow Damage 16 | . . . . 16 Projectiles . | . . . . . Explosions 16 | . . . . 16 Melee . | . . . . . Knockbacks 14 | . . . 1 13 Impact . | . . . . . Kinetic 14 | . . . 1 13 Secondary . | . . . . . Self-Inflicted Damage 54 | . . . . 54 Shots 1 | . . . . 1 Rammed 1 | . . . . 1 Targets Rammed 1 | . . . . 1 Kicked . | . . . . . Crushed . | . . . . . Highest Temperature 407 | . 6 9 291 407 Average Temperature 112 | . 6 2 128 104 Received Heat Transfer 1173 | . . 180 399 594 Effects 1 | . . . . 1 Energy Bleed 1 | . . . . 1 Siege Activations . | . . . . . Robots Corrupted . | . . . . . Combat Hostiles . | . . . . . Parts Fried 1 | . . . . 1 Impact Corruptions . | . . . . . Robots Melted . | . . . . . Combat Hostiles . | . . . . . Parts Melted 1 | . . . . 1 Heat Transferred 820 | . . . 620 200 Parts Sabotaged . | . . . . . Parts Stolen . | . . . . . Parts Stripped . | . . . . . Power Chain Reactions 1 | . . . . 1 Alert | -11 -10 -10 -9 -8 ------- Run | Yrd Mat Min Mat Mat Peak Influence 342 | . 75 93 235 342 Initial 63 | . . 28 35 63 Average 108 | . 38 68 118 167 Maximum Alert Level 1 | . . . 1 1 Low Security (%) 82 | 100 100 100 79 63 Level 1 17 | . . . 20 36 Level 2 . | . . . . . Level 3 . | . . . . . Level 4 . | . . . . . Level 5 . | . . . . . High Security . | . . . . . Max Security . | . . . . . Squads Dispatched 6 | . 2 . 3 1 Investigation 3 | . . . 2 1 Extermination . | . . . . . Reinforcement 3 | . 2 . 1 . Assault . | . . . . . Garrison . | . . . . . Intercept . | . . . . . Searches Triggered . | . . . . . Construction Impeded . | . . . . . Haulers Reinforced . | . . . . . Active Scanning Responses . | . . . . . Cargo Convoy Interrupts . | . . . . . Stealth | -11 -10 -10 -9 -8 --------- Run | Yrd Mat Min Mat Mat Distress Signals 3 | . . . 1 2 Communications Jammed . | . . . . . Distress Signals . | . . . . . Times Spotted 57 | . 5 5 26 21 Peak Tracking Total 9 | . 3 2 8 9 Tactical Retreats 1 | . 1 . . . Traps | -11 -10 -10 -9 -8 ------- Run | Yrd Mat Min Mat Mat Traps Triggered 2 | . . . 1 1 Indirectly . | . . . . . Trap Hack Attempts . | . . . . . Triggered . | . . . . . Disarmed . | . . . . . Reprogrammed . | . . . . . Reused . | . . . . . Traps Extracted . | . . . . . Installed . | . . . . . Triggered . | . . . . . Machines | -11 -10 -10 -9 -8 ---------- Run | Yrd Mat Min Mat Mat Machines Disabled 3 | . . . . 3 Max in Single Turn 2 | . . . . 2 Machines Repaired . | . . . . . Machines Dismantled . | . . . . . Machines Sabotaged . | . . . . . Overloaded Fab Kills . | . . . . . Hacking | -11 -10 -10 -9 -8 --------- Run | Yrd Mat Min Mat Mat Machines Accessed 6 | . 2 . 3 1 Terminals 3 | . 2 . . 1 Fabricators . | . . . . . Repair Stations 2 | . . . 2 . Recycling Units . | . . . . . Scanalyzers 1 | . . . 1 . Garrison Access . | . . . . . Total Hacks 16 | . 4 . 11 1 Successful 6 | . 2 . 3 1 Failed 10 | . 2 . 8 . Catastrophic 1 | . . . 1 . Database Lockouts . | . . . . . Manual 1 | . 1 . . . Terminals 5 | . 4 . . 1 Fabricators . | . . . . . Repair Stations 7 | . . . 7 . Recycling Units . | . . . . . Scanalyzers 4 | . . . 4 . Garrison Access . | . . . . . Terminal Hacks 3 | . 2 . . 1 Alert Level 2 | . 1 . . 1 Locate Traps 1 | . 1 . . . Fabricator Hacks . | . . . . . Repair Station Hacks 2 | . . . 2 . Scan Component 2 | . . . 2 . Recycling Unit Hacks . | . . . . . Scanalyzer 1 | . . . 1 . Insert Component 1 | . . . 1 . Garrison Access Hacks . | . . . . . Unauthorized Hacks . | . . . . . Terminals . | . . . . . Fabricators . | . . . . . Repair Stations . | . . . . . Recycling Units . | . . . . . Scanalyzers . | . . . . . Garrison Access . | . . . . . Data Cores Recovered . | . . . . . Used . | . . . . . Hacking Detections 3 | . 1 . 2 . Full Trace Events 2 | . . . 2 . Feedback Events . | . . . . . Feedback Blocked . | . . . . . Robot Schematics Acquired . | . . . . . Robots Built . | . . . . . Authchips . | . . . . . Time . | . . . . . Total Robot Build Rating . | . . . . . Part Schematics Acquired . | . . . . . Parts Built . | . . . . . Authchips . | . . . . . Time . | . . . . . Total Part Build Rating . | . . . . . Parts Repaired . | . . . . . Time . | . . . . . Parts Recycled . | . . . . . Recycled Matter . | . . . . . Retrieved Matter . | . . . . . Retrieved Components . | . . . . . Parts Scanalyzed 1 | . . . 1 . Part Schematics Acquired . | . . . . . Parts Damaged 1 | . . . 1 . Bothacking | -11 -10 -10 -9 -8 ------------ Run | Yrd Mat Min Mat Mat Used RIF Installer . | . . . . . Robots Hacked . | . . . . . Non-combat . | . . . . . Combat . | . . . . . Robot Hacks Applied . | . . . . . Relay Couplers Released . | . . . . . Fabnet Peak Effective % . | . . . . . Robots Rewired . | . . . . . Allies Hacked . | . . . . . Hacks Repelled . | . . . . . Allies | -11 -10 -10 -9 -8 -------- Run | Yrd Mat Min Mat Mat Total Allies . | . . . . . Largest Group . | . . . . . Highest-Rated Group . | . . . . . Highest-Rated Ally . | . . . . . Total Orders . | . . . . . Ally Attacks . | . . . . . Total Damage . | . . . . . Kills . | . . . . . Allies Corrupted . | . . . . . Allies Melted . | . . . . . Intel | -11 -10 -10 -9 -8 ------- Run | Yrd Mat Min Mat Mat Robot Analysis Total . | . . . . . Derelict Logs Recovered . | . . . . . Drone Launches . | . . . . . Drone Recoveries . | . . . . . Exploration | -11 -10 -10 -9 -8 ------------- Run | Yrd Mat Min Mat Mat Turns Passed 1462 | 63 122 333 559 385 Spaces Moved 1093 | 49 123 294 390 237 Core 14 | 5 . 1 . 8 Treads 83 | . . 31 34 18 Legs . | . . . . . Wheels 996 | 44 123 262 356 211 Hover . | . . . . . Flight . | . . . . . Fastest Speed 50 | 50 90 90 85 96 Average Speed 98 | 85 90 98 100 103 Slowest Speed 250 | 90 90 250 160 160 Overloaded Moves . | . . . . . Propulsion Burnouts . | . . . . . Robots Hopped . | . . . . . Cave-ins Triggered . | . . . . . Exploration Rate (%) 28 | 4 23 44 42 30 Regions Visited 4 Branch Regions 1 Pre-discovered Areas . | . . . . . Known Exits Taken . | . . . . . Unknown Exits Taken 4 | 1 1 1 1 . Scrap Searched 1 | . . 1 . . Spaces Dug . | . . . . . Terrain Destroyed 23 | . . . . 23 Melee . | . . . . . Projectile . | . . . . . AOE 23 | . . . . 23 Terrain Rammed . | . . . . . Walls Destroyed . | . . . . . Machines Disabled . | . . . . . Actions | -11 -10 -10 -9 -8 --------- Run | Yrd Mat Min Mat Mat Total 1304 | 69 128 319 473 315 Wait 18 | 3 . 7 . 8 Move 1089 | 48 122 293 389 237 Hop . | . . . . . Pick Up 38 | 12 2 4 10 10 Fast Attach 7 | . . . 1 6 Attach 25 | 6 1 2 5 11 Detach . | . . . . . Swap 14 | . . 1 12 1 Drop 15 | . . 2 11 2 Fire 97 | . 3 10 45 39 Melee . | . . . . . Ram 1 | . . . . 1 Kick . | . . . . . Crush . | . . . . . Escape Stasis . | . . . . . Rewire . | . . . . . Trap . | . . . . . Miscellaneous . | . . . . . Route ------- -11/Scrapyard -10/Materials -10/Mines -9/Materials (discovered 2 exits: *Mat / [*Min]) -8/Materials History --------- Turn | Location | Event 38 | -11/Scrapyard | Discovered new exit (range 13) 64 | -11/Scrapyard | Entered Materials 86 | -10/Materials | Discovered new exit (range 14) 186 | -10/Materials | Entered Mines 239 | -10/Mines | Found a damaged Exp. Sensor Array with a note attached 241 | -10/Mines | Found Prototype Device 301 | -10/Mines | Build established: Mutant 345 | -10/Mines | Assembled infested the area 350 | -10/Mines | Assisted by a Guerilla fighting off Assembled 416 | -10/Mines | Discovered new exit (range 8) 519 | -10/Mines | Entered Materials 519 | -9/Materials | Evolved 2 slots: Propulsion x1, Utility x1 720 | -9/Materials | Identified Exp. Sensor Array 881 | -9/Materials | Discovered new exit (range 15) 996 | -9/Materials | Core integrity fell below 50% 1017 | -9/Materials | Lost 6 parts (1p2n1u2w) 1044 | -9/Materials | Discovered new exit (range 15) 1076 | -9/Materials | Core integrity fell below 20% 1078 | -9/Materials | Entered another Materials area 1078 | -8/Materials | Evolved 2 slots: Propulsion x1, Utility x1 1451 | -8/Materials | Core integrity fell below 50% 1459 | -8/Materials | Core integrity fell below 20% 1463 | -8/Materials | Destroyed by H-61 Shepherd with Heavy Assault Cannon Last Messages --------------- 01426_ Lgt. Nuclear Core destroyed. 01426_ O-16 Technician: "IFF HANDSHAKE FAILED. SECURING TERMINAL." 01427_ Acquired 100 matter. 01427_ K-01 Serf collects debris. 01434_ R-06 Scavenger collects Terrain Scan Processor. 01436_ Critical hit (Burn: +37). 01436_ Flak Cannon destroyed. 01437_ R-06 Scavenger collects Wheel. 01439_ M-13 Machinist repairs G-47 Trooper. 01439_ Com. Matter Pod destroyed. 01440_ Gauss Rifle destroyed. 01440_ Lgt. Cannon destroyed. 01444_ Imp. Treads destroyed. 01444_ Critical hit (Blast). 01444_ Recoil Stabilizer destroyed. 01447_ Critical hit (Burn: +37). 01454_ Imp. Treads destroyed. 01458_ Knocked back. Map ----- +----------------------------------------------------+ | ?????????????????????????????????? | | ?????????????????????????????????? | | ?????????????????????????????????? | | ?????????????????????????????????? | | ?????????????????????????????????? | | ?????????????????????????????????? | | ?????????????????????????????????? | | ?????????????????????????????????? | | ?????????????????????????????????? | | ?????????????????????????????????? | | ?????????????????????????????????? | | ???????????? ???????????????????? | | ??????????? #?????????????????? | | ?????????? #?????????????????? | | ?????????? #####?????????????? | | ?????????? ==#?????????????? | | ?????????? ==#?????????????? | | ?????????# **#?????????????? | | ?????????# **??????????????? | | ?????????# =???????????????? | | ?????????# ????????????????? | | ?????????# ^#?????????????????? | | ?######### ##????????????????? | | # !! # % #????????????????? | | # !! # m #########????????? | | # ! #@ ss ???????? | | # ! % + ???????? | | # # s ????????? | | # """ # H ########?????????? | | # """ #% #????????????????? | | # """ ### ###????????????????? | | # #?# #??????????????????? | | #? #?# #??????????????????? | | ? "T" #?# #??????????????????? | | ??######??# ##?????????????????? | | ??????????# ;#?????????????????? | | ??????????#% ;#?????????????????? | | ??????????# o##?????????????????? | | ??????????# #??????????????????? | | ??????????# g#??????????????????# | | ??????????# #??????????????????+ | | ??????????# % #??????????????????# | | ??????????#% #??????????????????? | | ??????????# #??????????????????? | | ??????????#% #?????????????###### | | ??????????# #????????????? | | ??????????# #????????????? | | ??????????# #??????###????! | | ??????????# #???#### ##### | | ????""" # ##### # | +----------------------------------------------------+ Best States ------------- Heat Dissipation 50 Energy Generation 14 Energy Capacity 260 Matter Stores 300 Matter Capacity 450 Sight Range 16 Terrain Scan Density 10 Armor Coverage 225 Evasion (%) 42 Targeting Accuracy 5 Recoil Reduction 6 Item Schematics ----------------- None Robot Schematics ------------------ None Fabricated ------------ Nothing Alien Tech Used ----------------- None Achievements -------------- None Challenges ------------ None Game ------ Seed BombardmentLaserHammer Manual? 0 Play Time 00:19:35 Cumulative 193.5 hours Start 2025.01.16 @ 01:00:20 End 2025.01.16 @ 01:22:01 Sessions 1 Manual Loads 0 Difficulty Rogue Special Mode None Game No. 265 Rogue 265 Adventurer 0 Explorer 0 Win Type - Total 1 Types 1/0/0/0/0/0/0/0/0 Lore% 33 Gallery% 62 Achievement% 42 Wizard Run 0 Options --------- Layout 1 ASCII 0 Keyboard 0 Movement Mouse Keybinds 0 Fullscreen 2 Font 24/Smallcaps Map View 50x35 Zoom Use 0% Tactical HUD 1 Map Filters NONE Filters NONE Steam 1 RUN: ec625a21-252b-4bd7-b8d9-c788e2ba9b33